fUSD/lending_fUSD_20250324
["ID","MTS","AMOUNT","RATE_DAILY","PERIOD"]
[356624546,1742845871960,-500.0,0.00046849,120]
[356624547,1742845871969,-500.0,0.00046849,120]
[356624548,1742845871979,-7241.82,0.00046849,2]
[356624549,1742845871988,-159.68,0.00046849,30]
[356624550,1742845871997,-182.0453235,0.00046867,25]
[356624551,1742845872006,-596.56789084,0.00047123,2]
[356624552,1742845872016,-782.66,0.00047123,2]
[356624553,1742845872026,-500.0,0.00047123,7]
[356624554,1742845872035,-830.17,0.00047123,7]
[356624555,1742845872045,-2000.0,0.00047123,2]
[356624556,1742845872054,-500.0,0.00047123,10]
[356624557,1742845872064,-524.5554419,0.00047123,120]
[356624558,1742845872074,-500.0,0.00047123,120]
[356624559,1742845872083,-500.0,0.00047123,120]
[356624560,1742845872093,-500.0,0.00047123,120]
[356624561,1742845872102,-500.0,0.00047123,120]
[356624562,1742845872111,-500.0,0.00047123,120]
[356624563,1742845872120,-594.58303996,0.00047123,120]
[356624564,1742845872130,-500.0,0.00047123,120]
[356624565,1742845872139,-500.0,0.00047123,120]
[356624566,1742845872149,-611.59,0.00047123,120]
[356624567,1742845872158,-175.01614993,0.00047123,120]
[356624568,1742845872167,-500.0,0.00047123,120]
[356624569,1742845872176,-500.0,0.00047123,120]
[356624570,1742845872185,-500.0,0.00047123,120]
[356624571,1742845872194,-500.0,0.00047123,120]
[356624572,1742845872204,-644.84851326,0.00047123,120]
[356624573,1742845872213,-500.0,0.00047123,120]
[356624574,1742845872222,-367.0310522,0.00047123,120]
[356624575,1742845872231,-2989.75,0.00047123,120]
[356624576,1742845872241,-500.0,0.00047123,120]
[356624577,1742845872251,-608.89647771,0.00047123,120]
[356624578,1742845872260,-500.0,0.00047123,120]
[356624579,1742845872269,-500.0,0.00047123,120]
[356624580,1742845872278,-500.0,0.00047123,120]
[356624581,1742845872287,-500.0,0.00047123,120]
[356624582,1742845872296,-266.19661644,0.00047123,120]
[356624583,1742845872305,-500.0,0.00047123,120]
[356624584,1742845872315,-500.0,0.00047123,120]
[356624585,1742845872324,-500.0,0.00047123,120]
[356624586,1742845872334,-913.92,0.00047123,120]
[356624587,1742845872343,-500.0,0.00047123,120]
[356624588,1742845872352,-656.99,0.00047123,7]
[356624589,1742845872362,-500.0,0.00047123,120]
[356624590,1742845872371,-500.0,0.00047123,120]
[356624591,1742845872380,-527.42,0.00047123,120]
[356624592,1742845872390,-433.03798669,0.00047123,120]
[356624593,1742845872399,-500.0,0.00047123,120]
[356624594,1742845872408,-500.0,0.00047123,120]
[356624595,1742845872417,-500.0,0.00047123,100]
[356624596,1742845872427,-500.0,0.00047123,120]
[356624597,1742845872436,-200.0,0.00047123,7]
[356624598,1742845872445,-500.0,0.00047123,120]
[356624599,1742845872454,-500.0,0.00047123,120]
[356624600,1742845872463,-500.0,0.00047123,120]
[356624601,1742845872472,-206.31164214,0.00047123,120]
[356624602,1742845872482,-1015.23,0.00047123,120]
[356624603,1742845872491,-231.95901096,0.00047123,120]
[356624604,1742845872501,-500.0,0.00047123,120]
[356624605,1742845872510,-500.0,0.00047123,120]
[356624606,1742845872519,-400.5008104,0.00047123,120]
[356624607,1742845872529,-250.16361438,0.00047123,120]
[356624608,1742845872537,-500.0,0.00047123,120]
[356624609,1742845872549,-500.0,0.00047123,120]
[356624610,1742845872559,-1000.0,0.00047123,120]
[356624611,1742845872568,-500.0,0.00047123,120]
[356624612,1742845872577,-500.0,0.00047123,120]
[356624613,1742845872587,-500.0,0.00047123,120]
[356624614,1742845872595,-500.0,0.00047123,120]
[356624615,1742845872604,-500.0,0.00047123,120]
[356624616,1742845872614,-279.64758381,0.00047123,120]
[356624617,1742845872622,-4628.36,0.00047123,120]
[356624618,1742845872632,-500.0,0.00047123,120]
[356624619,1742845872641,-500.0,0.00047123,120]
[356624620,1742845872650,-500.0,0.00047123,120]
[356624621,1742845872659,-500.0,0.00047123,120]
[356624622,1742845872668,-500.0,0.00047123,120]
[356624623,1742845872678,-500.0,0.00047123,120]
[356624624,1742845872686,-500.0,0.00047123,120]
[356624625,1742845872696,-500.0,0.00047123,120]
[356624626,1742845872705,-500.0,0.00047123,120]
[356624627,1742845872714,-500.0,0.00047123,120]
[356624628,1742845872726,-500.0,0.00047123,120]
[356624629,1742845872735,-500.0,0.00047123,120]
[356624630,1742845872744,-617.04895792,0.00047123,120]
[356624631,1742845872753,-500.0,0.00047123,120]
[356624632,1742845872869,-500.0,0.00047123,120]
[356624633,1742845872879,-633.20698166,0.00047123,120]
[356624634,1742845872888,-500.0,0.00047123,120]
[356624635,1742845872898,-500.0,0.00047123,120]
[356624636,1742845872907,-545.06903657,0.00047123,120]
[356624637,1742845872917,-356.81288437,0.00047123,120]
[356624638,1742845872926,-335.84718154,0.00047123,120]
[356624639,1742845872935,-500.0,0.00047123,120]
[356624640,1742845872944,-500.0,0.00047123,120]
[356624641,1742845872954,-500.0,0.00047123,120]
[356624642,1742845872963,-500.0,0.00047123,120]
[356624643,1742845872972,-500.0,0.00047123,120]
[356624644,1742845872982,-500.0,0.00047123,120]
[356624645,1742845872991,-500.0,0.00047123,120]
[356624646,1742845873000,-564.59296941,0.00047123,120]
[356624647,1742845873009,-572.41882773,0.00047123,120]
[356624648,1742845873019,-265.65383108,0.00047123,120]
[356624649,1742845873028,-500.0,0.00047123,120]
[356624650,1742845873037,-500.0,0.00047123,120]
[356624651,1742845873047,-657.12,0.00047123,120]
[356624652,1742845873057,-500.0,0.00047123,120]
[356624653,1742845873067,-500.0,0.00047123,120]
[356624654,1742845873076,-500.0,0.00047123,120]
[356624655,1742845873086,-500.0,0.00047123,120]
[356624656,1742845873095,-500.0,0.00047123,120]
[356624657,1742845873105,-439.84797285,0.00047123,120]
[356624658,1742845873114,-500.0,0.00047123,120]
[356624659,1742845873124,-500.0,0.00047123,120]
[356624660,1742845873133,-500.0,0.00047123,120]
[356624661,1742845873143,-500.0,0.00047123,120]
[356624662,1742845873152,-500.0,0.00047123,120]
[356624663,1742845873161,-500.0,0.00047123,120]
[356624664,1742845873171,-621.42171185,0.00047123,120]
[356624665,1742845873180,-500.0,0.00047123,120]
[356624666,1742845873189,-500.0,0.00047123,120]
[356624667,1742845873198,-500.0,0.00047123,120]
[356624668,1742845873207,-603.60974523,0.00047123,120]
[356624669,1742845873217,-150.39250233,0.00047123,120]
[356624670,1742845873226,-500.22,0.00047123,120]
[356624671,1742845873236,-500.0,0.00047123,120]
[356624672,1742845873245,-500.0,0.00047123,120]
[356624673,1742845873253,-306.81290985,0.00047123,120]
[356624674,1742845873262,-500.0,0.00047123,120]
[356624675,1742845873271,-500.0,0.00047123,120]
[356624676,1742845873281,-500.0,0.00047123,120]
[356624677,1742845873290,-509.96205355,0.00047123,120]
[356624678,1742845873299,-500.0,0.00047123,120]
[356624679,1742845873309,-500.0,0.00047123,120]
[356624680,1742845873318,-159.84748833,0.00047123,120]
[356624681,1742845873327,-151.0,0.00047123,14]
[356624682,1742845873336,-500.0,0.00047123,120]
[356624683,1742845873345,-500.0,0.00047123,120]
[356624684,1742845873354,-151.0,0.00047123,14]
[356624685,1742845873364,-500.0,0.00047123,120]
[356624686,1742845873373,-500.0,0.00047123,120]
[356624687,1742845873382,-500.0,0.00047123,120]
[356624688,1742845873391,-536.62600264,0.00047123,20]
[356624689,1742845873401,-569.41891341,0.00047123,120]
[356624690,1742845873410,-500.0,0.00047123,120]
[356624691,1742845873419,-500.0,0.00047123,120]
[356624692,1742845873428,-500.0,0.00047123,120]
[356624693,1742845873437,-500.0,0.00047123,120]
[356624694,1742845873446,-500.0,0.00047123,120]
[356624695,1742845873455,-507.02249683,0.00047123,120]
[356624696,1742845873463,-500.0,0.00047123,120]
[356624697,1742845873472,-500.0,0.00047123,120]
[356624698,1742845873483,-500.0,0.00047123,120]
[356624699,1742845873492,-500.0,0.00047123,120]
[356624700,1742845873501,-614.29961858,0.00047123,120]
[356624701,1742845873510,-156.51851301,0.00047123,2]
[356624702,1742845873519,-500.0,0.00047123,120]
[356624703,1742845873528,-500.0,0.00047123,120]
[356624704,1742845873538,-243.97737581,0.00047123,120]
[356624705,1742845873551,-500.0,0.00047123,120]
[356624706,1742845873561,-500.0,0.00047123,120]
[356624707,1742845873570,-500.0,0.00047123,120]
[356624708,1742845873579,-500.0,0.00047123,120]
[356624709,1742845873589,-383.906034,0.00047123,120]
[356624710,1742845873598,-500.0,0.00047123,120]
[356624711,1742845873607,-500.0,0.00047123,120]
[356624712,1742845873616,-500.0,0.00047123,120]
[356624713,1742845873626,-500.0,0.00047123,120]
[356624714,1742845873638,-1853.82,0.00047123,120]
[356624715,1742845873648,-500.0,0.00047123,120]
[356624716,1742845873658,-618.84114998,0.00047123,120]
[356624717,1742845873667,-1056.54,0.00047123,120]
[356624718,1742845873676,-500.0,0.00047123,120]
[356624719,1742845873685,-500.0,0.00047123,120]
[356624720,1742845873694,-500.0,0.00047123,120]
[356624721,1742845873703,-500.0,0.00047123,120]
[356624722,1742845873712,-500.0,0.00047123,2]
[356624723,1742845873721,-500.0,0.00047123,120]
[356624724,1742845873730,-500.0,0.00047123,120]
[356624725,1742845873739,-500.0,0.00047123,120]
[356624726,1742845873748,-500.0,0.00047123,120]
[356624727,1742845873757,-500.0,0.00047123,120]
[356624728,1742845873766,-532.3526248,0.00047123,120]
[356624729,1742845873775,-498.95580259,0.00047123,2]
[356624730,1742845873784,-500.0,0.00047123,120]
[356624731,1742845873792,-500.0,0.00047123,120]
[356624732,1742845873802,-500.0,0.00047123,120]
[356624733,1742845873811,-7241.82,0.00047123,2]
[356624734,1742845873820,-209.221113,0.00047123,14]
[356624735,1742845873830,-1000.0,0.00047266,14]
[356624736,1742845873839,-46136.69,0.00047285,7]
[356624737,1742845873848,-598.68,0.00047291,2]
[356624738,1742845873858,-782.66,0.00047397,2]
[356624739,1742845873867,-513.05250599,0.00047397,7]
[356624740,1742845873877,-830.17,0.00047397,7]
[356624741,1742845873886,-2000.0,0.00047397,2]
[356624742,1742845873895,-500.0,0.00047397,10]
[356624743,1742845873904,-500.0,0.00047397,120]
[356624744,1742845873913,-500.0,0.00047397,120]
[356624745,1742845873922,-500.0,0.00047397,120]
[356624746,1742845873931,-500.0,0.00047397,120]
[356624747,1742845873941,-500.0,0.00047397,120]
[356624748,1742845873950,-500.0,0.00047397,120]
[356624749,1742845873960,-314.99989871,0.00047397,120]
[356624750,1742845873970,-611.59,0.00047397,120]
[356624751,1742845873979,-500.0,0.00047397,120]
[356624752,1742845873988,-500.0,0.00047397,120]
[356624753,1742845873997,-500.0,0.00047397,120]
[356624754,1742845874006,-500.0,0.00047397,120]
[356624755,1742845874016,-500.0,0.00047397,120]
[356624756,1742845874025,-2989.75,0.00047397,120]
[356624757,1742845874034,-500.0,0.00047397,120]
[356624758,1742845874044,-500.0,0.00047397,120]
[356624759,1742845874052,-500.0,0.00047397,120]
[356624760,1742845874061,-388.74285999,0.00047397,120]
[356624761,1742845874070,-500.0,0.00047397,120]
[356624762,1742845874079,-500.0,0.00047397,120]
[356624763,1742845874088,-628.21106931,0.00047397,120]
[356624764,1742845874098,-178.567384,0.00047397,60]
[356624765,1742845874107,-156.78254507,0.00047397,120]
[356624766,1742845874115,-913.92,0.00047397,120]
[356624767,1742845874125,-500.0,0.00047397,120]
[356624768,1742845874135,-656.99,0.00047397,7]
[356624769,1742845874144,-500.0,0.00047397,120]
[356624770,1742845874154,-500.0,0.00047397,120]
[356624771,1742845874163,-527.42,0.00047397,120]
[356624772,1742845874173,-500.0,0.00047397,120]
[356624773,1742845874183,-500.0,0.00047397,120]
[356624774,1742845874192,-500.0,0.00047397,100]
[356624775,1742845874201,-500.0,0.00047397,120]
[356624776,1742845874211,-206.25367488,0.00047397,7]
[356624777,1742845874220,-500.0,0.00047397,120]
[356624778,1742845874229,-649.68577846,0.00047397,120]
[356624779,1742845874240,-500.0,0.00047397,120]
[356624780,1742845874249,-1015.23,0.00047397,120]
[356624781,1742845874259,-500.0,0.00047397,120]
[356624782,1742845874268,-500.0,0.00047397,120]
[356624783,1742845874277,-507.57952674,0.00047397,120]
[356624784,1742845874287,-500.0,0.00047397,120]
[356624785,1742845874295,-1036.44097803,0.00047397,120]
[356624786,1742845874304,-500.0,0.00047397,120]
[356624787,1742845874314,-500.0,0.00047397,120]
[356624788,1742845874323,-317.38861831,0.00047397,120]
[356624789,1742845874332,-223.20923,0.00047397,60]
[356624790,1742845874342,-500.0,0.00047397,120]
[356624791,1742845874351,-500.0,0.00047397,120]
[356624792,1742845874360,-4628.36,0.00047397,120]
[356624793,1742845874370,-529.22668685,0.00047397,120]
[356624794,1742845874379,-500.0,0.00047397,120]
[356624795,1742845874388,-500.0,0.00047397,120]
[356624796,1742845874398,-276.10261373,0.00047397,120]
[356624797,1742845874408,-500.0,0.00047397,120]
[356624798,1742845874417,-254.25713847,0.00047397,120]
[356624799,1742845874427,-500.0,0.00047397,120]
[356624800,1742845874436,-500.0,0.00047397,120]
[356624801,1742845874446,-500.0,0.00047397,120]
[356624802,1742845874455,-500.0,0.00047397,120]
[356624803,1742845874465,-500.0,0.00047397,120]
[356624804,1742845874475,-500.0,0.00047397,120]
[356624805,1742845874485,-500.0,0.00047397,120]
[356624806,1742845874494,-500.0,0.00047397,120]
[356624807,1742845874503,-500.0,0.00047397,120]
[356624808,1742845874513,-500.0,0.00047397,120]
[356624809,1742845874523,-434.45446854,0.00047397,120]
[356624810,1742845874533,-500.0,0.00047397,120]
[356624811,1742845874544,-500.0,0.00047397,120]
[356624812,1742845874558,-500.0,0.00047397,120]
[356624813,1742845874571,-500.0,0.00047397,120]
[356624814,1742845874582,-500.0,0.00047397,120]
[356624815,1742845874594,-357.10778425,0.00047397,120]
[356624816,1742845874604,-500.0,0.00047397,120]
[356624817,1742845874614,-500.0,0.00047397,120]
[356624818,1742845874625,-657.12,0.00047397,120]
[356624819,1742845874636,-500.0,0.00047397,120]
[356624820,1742845874645,-500.0,0.00047397,120]
[356624821,1742845874655,-500.0,0.00047397,120]
[356624822,1742845874664,-500.0,0.00047397,120]
[356624823,1742845874674,-500.0,0.00047397,120]
[356624824,1742845874683,-151.0,0.00047397,14]
[356624825,1742845874693,-500.0,0.00047397,120]
[356624826,1742845874702,-315.63213879,0.00047397,120]
[356624827,1742845874712,-500.0,0.00047397,120]
[356624828,1742845874722,-649.11780936,0.00047397,120]
[356624829,1742845874732,-410.15645541,0.00047397,120]
[356624830,1742845874741,-155.9,0.00047397,120]
[356624831,1742845874751,-500.0,0.00047397,120]
[356624832,1742845874760,-500.0,0.00047397,120]
[356624833,1742845874770,-554.91938865,0.00047397,120]
[356624834,1742845874780,-500.22,0.00047397,120]
[356624835,1742845874790,-254.19859092,0.00047397,120]
[356624836,1742845874800,-500.0,0.00047397,120]
[356624837,1742845874810,-500.0,0.00047397,120]
[356624838,1742845874821,-500.0,0.00047397,120]
[356624839,1742845874832,-500.0,0.00047397,120]
[356624840,1742845874842,-500.0,0.00047397,120]
[356624841,1742845874851,-160.9802267,0.00047397,120]
[356624842,1742845874861,-523.34655565,0.00047397,120]
[356624843,1742845874870,-238.79552624,0.00047397,120]
[356624844,1742845874879,-622.38763666,0.00047397,120]
[356624845,1742845874890,-500.0,0.00047397,120]
[356624846,1742845874899,-447.36934374,0.00047397,120]
[356624847,1742845874908,-561.06188397,0.00047397,120]
[356624848,1742845874918,-500.0,0.00047397,120]
[356624849,1742845874927,-500.0,0.00047397,120]
[356624850,1742845874937,-413.52676516,0.00047397,120]
[356624851,1742845874946,-500.0,0.00047397,120]
[356624852,1742845874955,-500.0,0.00047397,120]
[356624853,1742845874965,-500.0,0.00047397,120]
[356624854,1742845874974,-500.0,0.00047397,120]
[356624855,1742845874984,-500.0,0.00047397,120]
[356624856,1742845874994,-500.0,0.00047397,120]
[356624857,1742845875004,-500.0,0.00047397,120]
[356624858,1742845875014,-500.0,0.00047397,120]
[356624859,1742845875023,-500.0,0.00047397,120]
[356624860,1742845875033,-500.0,0.00047397,120]
[356624861,1742845875043,-184.48131823,0.00047397,120]
[356624862,1742845875052,-500.0,0.00047397,120]
[356624863,1742845875062,-500.0,0.00047397,120]
[356624864,1742845875074,-174.87343513,0.00047397,120]
[356624865,1742845875085,-1853.82,0.00047397,120]
[356624866,1742845875095,-500.0,0.00047397,120]
[356624867,1742845875105,-500.0,0.00047397,120]
[356624868,1742845875236,-1056.54,0.00047397,120]
[356624869,1742845875247,-500.0,0.00047397,120]
[356624870,1742845875256,-639.85006704,0.00047397,120]
[356624871,1742845875266,-500.0,0.00047397,120]
[356624872,1742845875276,-500.0,0.00047397,120]
[356624873,1742845875285,-500.0,0.00047397,2]
[356624874,1742845875294,-500.0,0.00047397,120]
[356624875,1742845875304,-500.0,0.00047397,120]
[356624876,1742845875313,-500.0,0.00047397,120]
[356624877,1742845875324,-344.20108838,0.00047397,120]
[356624878,1742845875334,-500.0,0.00047397,120]
[356624879,1742845875343,-500.0,0.00047397,120]
[356624880,1742845875353,-505.98962902,0.00047397,120]
[356624881,1742845875362,-246.79995568,0.00047397,120]
[356624882,1742845875373,-7241.82,0.00047397,2]
[356624883,1742845875382,-1000.0,0.00047428,14]
[356624884,1742845875392,-152.0,0.00047585,11]
[356624885,1742845875402,-5215.10176123,0.000476,2]
[356624886,1742845875411,-782.66,0.00047671,2]
[356624887,1742845875422,-830.17,0.00047671,7]
[356624888,1742845875433,-2006.57792623,0.00047671,2]
[356624889,1742845875443,-500.0,0.00047671,10]
[356624890,1742845875453,-500.0,0.00047671,120]
[356624891,1742845875463,-500.0,0.00047671,120]
[356624892,1742845875473,-500.0,0.00047671,120]
[356624893,1742845875484,-500.0,0.00047671,120]
[356624894,1742845875494,-201.303729,0.00047671,120]
[356624895,1742845875504,-500.0,0.00047671,120]
[356624896,1742845875515,-611.59,0.00047671,120]
[356624897,1742845875526,-500.0,0.00047671,120]
[356624898,1742845875537,-172.79339061,0.00047671,120]
[356624899,1742845875550,-500.0,0.00047671,120]
[356624900,1742845875560,-500.0,0.00047671,120]
[356624901,1742845875571,-500.0,0.00047671,120]
[356624902,1742845875581,-2989.75,0.00047671,120]
[356624903,1742845875591,-500.0,0.00047671,120]
[356624904,1742845875601,-199.71507,0.00047671,14]
[356624905,1742845875611,-151.0,0.00047671,14]
[356624906,1742845875621,-500.0,0.00047671,120]
[356624907,1742845875634,-500.0,0.00047671,120]
[356624908,1742845875644,-500.0,0.00047671,120]
[356624909,1742845875654,-500.0,0.00047671,120]
[356624910,1742845875665,-913.92,0.00047671,120]
[356624911,1742845875675,-500.0,0.00047671,120]
[356624912,1742845875685,-656.99,0.00047671,7]
[356624913,1742845875695,-500.0,0.00047671,120]
[356624914,1742845875705,-263.4949465,0.00047671,120]
[356624915,1742845875716,-527.42,0.00047671,120]
[356624916,1742845875726,-500.0,0.00047671,120]
[356624917,1742845875735,-641.97468259,0.00047671,120]
[356624918,1742845875746,-500.0,0.00047671,100]
[356624919,1742845875756,-500.0,0.00047671,120]
[356624920,1742845875765,-500.0,0.00047671,120]
[356624921,1742845875775,-500.0,0.00047671,120]
[356624922,1742845875785,-1015.23,0.00047671,120]
[356624923,1742845875795,-500.0,0.00047671,120]
[356624924,1742845875805,-483.60173763,0.00047671,120]
[356624925,1742845875815,-554.46886202,0.00047671,120]
[356624926,1742845875826,-500.0,0.00047671,120]
[356624927,1742845875836,-500.0,0.00047671,120]
[356624928,1742845875846,-500.0,0.00047671,120]
[356624929,1742845875855,-372.64778209,0.00047671,120]
[356624930,1742845875865,-4628.36,0.00047671,120]
[356624931,1742845875875,-500.0,0.00047671,120]
[356624932,1742845875885,-500.0,0.00047671,120]
[356624933,1742845875895,-500.0,0.00047671,120]
[356624934,1742845875905,-500.0,0.00047671,120]
[356624935,1742845875914,-447.29538727,0.00047671,120]
[356624936,1742845875924,-500.0,0.00047671,120]
[356624937,1742845875934,-500.0,0.00047671,120]
[356624938,1742845875944,-404.97918983,0.00047671,120]
[356624939,1742845875954,-500.0,0.00047671,120]
[356624940,1742845875964,-500.0,0.00047671,120]
[356624941,1742845875974,-322.94027315,0.00047671,120]
[356624942,1742845875985,-500.0,0.00047671,120]
[356624943,1742845875994,-500.0,0.00047671,120]
[356624944,1742845876003,-500.0,0.00047671,120]
[356624945,1742845876012,-500.0,0.00047671,120]
[356624946,1742845876019,-291.73981451,0.00047671,120]
[356624947,1742845876027,-500.0,0.00047671,120]
[356624948,1742845876035,-500.0,0.00047671,120]
[356624949,1742845876045,-500.0,0.00047671,120]
[356624950,1742845876055,-500.0,0.00047671,120]
[356624951,1742845876066,-657.12,0.00047671,120]
[356624952,1742845876077,-500.0,0.00047671,120]
[356624953,1742845876089,-238.22709743,0.00047671,120]
[356624954,1742845876099,-209.47633928,0.00047671,120]
[356624955,1742845876109,-500.0,0.00047671,120]
[356624956,1742845876120,-500.0,0.00047671,120]
[356624957,1742845876130,-500.0,0.00047671,120]
[356624958,1742845876141,-500.0,0.00047671,120]
[356624959,1742845876151,-500.0,0.00047671,120]
[356624960,1742845876161,-500.0,0.00047671,120]
[356624961,1742845876171,-500.22,0.00047671,120]
[356624962,1742845876182,-500.0,0.00047671,120]
[356624963,1742845876192,-500.0,0.00047671,120]
[356624964,1742845876203,-183.72951697,0.00047671,120]
[356624965,1742845876213,-500.0,0.00047671,120]
[356624966,1742845876223,-500.0,0.00047671,120]
[356624967,1742845876233,-256.62303111,0.00047671,120]
[356624968,1742845876244,-500.0,0.00047671,120]
[356624969,1742845876256,-500.0,0.00047671,120]
[356624970,1742845876266,-500.0,0.00047671,120]
[356624971,1742845876276,-500.0,0.00047671,120]
[356624972,1742845876286,-500.0,0.00047671,120]
[356624973,1742845876296,-500.0,0.00047671,120]
[356624974,1742845876306,-500.0,0.00047671,120]
[356624975,1742845876316,-209.15455474,0.00047671,120]
[356624976,1742845876328,-206.46585137,0.00047671,120]
[356624977,1742845876338,-500.0,0.00047671,120]
[356624978,1742845876347,-500.0,0.00047671,120]
[356624979,1742845876358,-500.0,0.00047671,120]
[356624980,1742845876368,-500.0,0.00047671,120]
[356624981,1742845876379,-500.0,0.00047671,120]
[356624982,1742845876388,-500.0,0.00047671,120]
[356624983,1742845876398,-1853.82,0.00047671,120]
[356624984,1742845876408,-500.0,0.00047671,120]
[356624985,1742845876417,-1056.54,0.00047671,120]
[356624986,1742845876428,-500.0,0.00047671,120]
[356624987,1742845876438,-500.0,0.00047671,120]
[356624988,1742845876449,-500.0,0.00047671,120]
[356624989,1742845876460,-500.0,0.00047671,2]
[356624990,1742845876468,-500.0,0.00047671,120]
[356624991,1742845876476,-309.06802252,0.00047671,120]
[356624992,1742845876484,-500.0,0.00047671,120]
[356624993,1742845876493,-500.0,0.00047671,120]
[356624994,1742845876502,-500.0,0.00047671,120]
[356624995,1742845876512,-7241.82,0.00047671,2]
[356624996,1742845876522,-181.0,0.00047882,90]
[356624997,1742845876532,-2000.0,0.000479,2]
[356624998,1742845876544,-44273.08,0.00047919,7]
[356624999,1742845876556,-782.66,0.00047945,2]
[356625000,1742845876567,-830.17,0.00047945,7]
[356625001,1742845876578,-262.98750043,0.00047945,10]
[356625002,1742845876587,-500.0,0.00047945,120]
[356625003,1742845876598,-500.0,0.00047945,120]
[356625004,1742845876608,-500.0,0.00047945,120]
[356625005,1742845876620,-500.0,0.00047945,120]
[356625006,1742845876630,-626.81842974,0.00047945,120]
[356625007,1742845876640,-500.0,0.00047945,120]
[356625008,1742845876651,-500.0,0.00047945,120]
[356625009,1742845876662,-500.0,0.00047945,120]
[356625010,1742845876672,-500.0,0.00047945,120]
[356625011,1742845876683,-500.0,0.00047945,120]
[356625012,1742845876692,-500.0,0.00047945,120]
[356625013,1742845876702,-500.0,0.00047945,120]
[356625014,1742845876713,-500.0,0.00047945,120]
[356625015,1742845876722,-500.0,0.00047945,120]
[356625016,1742845876732,-500.0,0.00047945,120]
[356625017,1742845876742,-500.0,0.00047945,120]
[356625018,1742845876752,-611.59,0.00047945,120]
[356625019,1742845876762,-500.0,0.00047945,120]
[356625020,1742845876772,-500.0,0.00047945,120]
[356625021,1742845876783,-500.0,0.00047945,120]
[356625022,1742845876793,-500.0,0.00047945,120]
[356625023,1742845876803,-500.0,0.00047945,120]
[356625024,1742845876813,-500.0,0.00047945,120]
[356625025,1742845876823,-500.0,0.00047945,120]
[356625026,1742845876833,-293.49707054,0.00047945,120]
[356625027,1742845876843,-500.0,0.00047945,120]
[356625028,1742845876853,-500.0,0.00047945,120]
[356625029,1742845876863,-500.0,0.00047945,120]
[356625030,1742845876874,-500.0,0.00047945,120]
[356625031,1742845876884,-339.46748357,0.00047945,120]
[356625032,1742845876894,-500.0,0.00047945,120]
[356625033,1742845876904,-500.0,0.00047945,120]
[356625034,1742845876914,-500.0,0.00047945,120]
[356625035,1742845876924,-345.0,0.00047945,120]
[356625036,1742845876935,-500.0,0.00047945,120]
[356625037,1742845876946,-287.27863416,0.00047945,120]
[356625038,1742845876957,-500.0,0.00047945,120]
[356625039,1742845876967,-2989.75,0.00047945,120]
[356625040,1742845876978,-500.0,0.00047945,120]
[356625041,1742845876989,-500.0,0.00047945,120]
[356625042,1742845876999,-527.90686262,0.00047945,120]
[356625043,1742845877009,-500.0,0.00047945,120]
[356625044,1742845877020,-500.0,0.00047945,120]
[356625045,1742845877031,-913.92,0.00047945,120]